fUST/lending_fUST_20251006
["ID","MTS","AMOUNT","RATE_DAILY","PERIOD"]
[389532181,1759702240088,-1048.94,0.00016438,2]
[389532184,1759702240097,-500.0,0.00016438,2]
[389532187,1759702240107,-500.0,0.00016438,2]
[389532189,1759702240117,-3899.34,0.00016438,2]
[389532191,1759702240127,-500.0,0.00016438,2]
[389532194,1759702240137,-500.0,0.00016438,2]
[389532197,1759702240146,-500.0,0.00016438,2]
[389532200,1759702240155,-500.0,0.00016438,2]
[389532204,1759702240165,-719.05,0.00016438,2]
[389532206,1759702240174,-902.25,0.00016438,2]
[389532208,1759702240183,-876.48,0.00016438,2]
[389532210,1759702240192,-500.0,0.00016438,2]
[389532212,1759702240201,-500.0,0.00016438,2]
[389532213,1759702240211,-1418.2,0.00016438,2]
[389532215,1759702240220,-500.0,0.00016438,2]
[389532216,1759702240230,-500.0,0.00016438,2]
[389532219,1759702240240,-746.24,0.00016438,2]
[389532221,1759702240249,-500.0,0.00016438,2]
[389532224,1759702240259,-1595.15,0.00016438,2]
[389532226,1759702240268,-555.3,0.00016438,2]
[389532229,1759702240277,-500.0,0.00016438,2]
[389532231,1759702240286,-500.0,0.00016438,2]
[389532234,1759702240295,-500.0,0.00016438,2]
[389532236,1759702240304,-500.0,0.00016438,2]
[389532238,1759702240314,-737.37,0.00016438,2]
[389532240,1759702240323,-500.0,0.00016438,2]
[389532242,1759702240332,-500.0,0.00016438,2]
[389532244,1759702240342,-500.0,0.00016438,2]
[389532246,1759702240351,-3212.25,0.00016438,2]
[389532248,1759702240360,-500.0,0.00016438,2]
[389532250,1759702240370,-500.0,0.00016438,2]
[389532252,1759702240379,-500.0,0.00016438,2]
[389532254,1759702240390,-500.0,0.00016438,2]
[389532256,1759702240400,-500.0,0.00016438,2]
[389532258,1759702240409,-1289.33,0.00016438,2]
[389532260,1759702240419,-500.0,0.00016438,2]
[389532262,1759702240427,-500.0,0.00016438,2]
[389532264,1759702240437,-500.0,0.00016438,2]
[389532266,1759702240446,-500.0,0.00016438,2]
[389532268,1759702240455,-8646.43,0.00016438,2]
[389532271,1759702240464,-500.0,0.00016438,2]
[389532274,1759702240474,-500.0,0.00016438,2]
[389532277,1759702240483,-500.0,0.00016438,2]
[389532280,1759702240492,-500.0,0.00016438,2]
[389532282,1759702240501,-500.0,0.00016438,2]
[389532284,1759702240510,-985.34,0.00016438,2]
[389532286,1759702240519,-500.0,0.00016438,2]
[389532287,1759702240533,-500.0,0.00016438,2]
[389532289,1759702240542,-500.0,0.00016438,2]
[389532291,1759702240551,-500.0,0.00016438,2]
[389532293,1759702240560,-2089.97,0.00016438,2]
[389532295,1759702240572,-500.0,0.00016438,2]
[389532297,1759702240580,-500.0,0.00016438,2]
[389532299,1759702240589,-500.0,0.00016438,2]
[389532302,1759702240598,-500.0,0.00016438,2]
[389532304,1759702240609,-1064.3,0.00016438,2]
[389532305,1759702240620,-170.79,0.00016438,2]
[389532307,1759702240629,-500.0,0.00016438,2]
[389532309,1759702240638,-797.52,0.00016438,2]
[389532311,1759702240647,-5452.89,0.00016438,2]
[389532313,1759702240655,-500.0,0.00016438,2]
[389532315,1759702240664,-500.0,0.00016438,2]
[389532317,1759702240674,-500.0,0.00016438,2]
[389532319,1759702240683,-500.0,0.00016438,2]
[389532321,1759702240693,-500.0,0.00016712,2]
[389532323,1759702240703,-260.28427647,0.00016712,2]
[389532325,1759702240712,-500.0,0.00016712,2]
[389532327,1759702240725,-500.0,0.00016712,2]
[389532329,1759702240736,-500.0,0.00016712,2]
[389532331,1759702240745,-500.0,0.00016712,2]
[389532333,1759702240754,-500.0,0.00016712,2]
[389532335,1759702240764,-500.0,0.00016712,2]
[389532337,1759702240773,-500.0,0.00016712,2]
[389532339,1759702240782,-526.34,0.00016712,2]
[389532341,1759702240792,-500.0,0.00016712,2]
[389532343,1759702240801,-1483.08,0.00016712,2]
[389532345,1759702240810,-500.0,0.00016712,2]
[389532347,1759702240820,-500.0,0.00016712,2]
[389532349,1759702240829,-500.0,0.00016712,2]
[389532350,1759702240838,-500.0,0.00016712,2]
[389532352,1759702240847,-500.0,0.00016712,2]
[389532354,1759702240856,-500.0,0.00016712,2]
[389532356,1759702240865,-500.0,0.00016712,2]
[389532358,1759702240875,-500.0,0.00016712,2]
[389532360,1759702240884,-500.0,0.00016712,2]
[389532362,1759702240893,-500.0,0.00016712,2]
[389532364,1759702240902,-721.72,0.00016712,2]
[389532366,1759702240911,-1242.45,0.00016712,2]
[389532368,1759702240921,-500.0,0.00016712,2]
[389532369,1759702240930,-500.0,0.00016712,2]
[389532372,1759702240940,-795.46,0.00016712,2]
[389532374,1759702240949,-500.0,0.00016712,2]
[389532376,1759702240959,-500.0,0.00016712,2]
[389532377,1759702240968,-500.0,0.00016712,2]
[389532379,1759702240977,-500.0,0.00016712,2]
[389532381,1759702240986,-500.0,0.00016712,2]
[389532383,1759702240996,-694.4,0.00016712,2]
[389532385,1759702241005,-500.0,0.00016712,2]
[389532387,1759702241015,-500.0,0.00016712,2]
[389532389,1759702241024,-500.0,0.00016712,2]
[389532391,1759702241033,-500.0,0.00016712,2]
[389532393,1759702241042,-499.82236058,0.00016712,2]
[389532395,1759702241051,-500.0,0.00016712,2]
[389532397,1759702241060,-500.0,0.00016712,2]
[389532399,1759702241069,-508.62,0.00016712,2]
[389532401,1759702241079,-626.09,0.00016712,2]
[389532403,1759702241087,-500.0,0.00016712,2]
[389532405,1759702241097,-193.54318782,0.00016712,2]
[389532407,1759702241107,-826.0,0.00016712,2]
[389532409,1759702241118,-500.0,0.00016712,2]
[389532411,1759702241127,-284.97416766,0.00016712,2]
[389532413,1759702241136,-500.0,0.00016712,2]
[389532415,1759702241146,-500.0,0.00016712,2]
[389532417,1759702241155,-500.0,0.00016712,2]
[389532419,1759702241165,-500.0,0.00016712,2]
[389532421,1759702241174,-500.0,0.00016712,2]
[389532423,1759702241183,-500.0,0.00016712,2]
[389532425,1759702241193,-500.0,0.00016712,2]
[389532427,1759702241202,-1302.91,0.00016712,2]
[389532429,1759702241211,-660.82,0.00016712,2]
[389532431,1759702241220,-500.0,0.00016712,2]
[389532433,1759702241229,-500.0,0.00016712,2]
[389532435,1759702241238,-500.0,0.00016712,2]
[389532437,1759702241248,-500.0,0.00016712,2]
[389532439,1759702241257,-500.0,0.00016712,2]
[389532441,1759702241266,-500.0,0.00016712,2]
[389532443,1759702241275,-500.0,0.00016712,2]
[389532445,1759702241284,-500.0,0.00016712,2]
[389532446,1759702241293,-500.0,0.00016712,2]
[389532448,1759702241302,-870.27,0.00016712,2]
[389532450,1759702241312,-634.35,0.00016712,2]
[389532452,1759702241321,-525.99,0.00016712,2]
[389532454,1759702241331,-500.0,0.00016712,2]
[389532456,1759702241340,-500.0,0.00016712,2]
[389532458,1759702241349,-1210.19,0.00016712,2]
[389532460,1759702241358,-500.0,0.00016712,2]
[389532462,1759702241367,-500.0,0.00016712,2]
[389532464,1759702241377,-837.23,0.00016712,2]
[389532466,1759702241386,-500.0,0.00016712,2]
[389532468,1759702241396,-1574.85,0.00016712,2]
[389532470,1759702241405,-288.66623334,0.00016712,2]
[389532472,1759702241414,-500.0,0.00016712,2]
[389532474,1759702241423,-1163.07,0.00016712,2]
[389532476,1759702241432,-520.91,0.00016712,2]
[389532478,1759702241441,-500.0,0.00016712,2]
[389532480,1759702241450,-3168.37,0.00016712,2]
[389532482,1759702241460,-567.98,0.00016712,2]
[389532484,1759702241469,-500.0,0.00016712,2]
[389532486,1759702241478,-516.39,0.00016712,2]
[389532488,1759702241487,-500.0,0.00016712,2]
[389532490,1759702241496,-2000.0,0.00016712,2]
[389532492,1759702241505,-1370.67,0.00016712,2]
[389532494,1759702241514,-500.0,0.00016712,2]
[389532495,1759702241527,-9512.92,0.00016712,2]
[389532497,1759702241536,-4367.85,0.00016712,2]
[389532499,1759702241546,-574.05,0.00016712,2]
[389532501,1759702241555,-500.0,0.00016712,2]
[389532503,1759702241564,-500.0,0.00016712,2]
[389532506,1759702241576,-647.93,0.00016712,2]
[389532508,1759702241585,-726.18,0.00016712,2]
[389532509,1759702241595,-500.0,0.00016712,2]
[389532512,1759702241608,-819.75,0.00016712,2]
[389532513,1759702241618,-500.0,0.00016712,2]
[389532514,1759702241626,-500.0,0.00016712,2]
[389532515,1759702241635,-500.0,0.00016712,2]
[389532516,1759702241644,-1020.8,0.00016712,2]
[389532517,1759702241653,-13497.62,0.00016712,2]
[389532518,1759702241662,-503.56,0.00016712,2]
[389532519,1759702241670,-500.0,0.00016712,2]
[389532520,1759702241679,-500.0,0.00016712,2]
[389532521,1759702241688,-1138.66,0.00016712,2]
[389532522,1759702241696,-689.31,0.00016712,2]
[389532523,1759702241705,-838.71,0.00016712,2]
[389532524,1759702241714,-535.43,0.00016712,2]
[389532525,1759702241723,-500.0,0.00016712,2]
[389532526,1759702241731,-1340.33,0.00016712,2]
[389532527,1759702241740,-327.38402587,0.00016712,2]
[389532528,1759702241749,-2553.03,0.00016712,2]
[389532529,1759702241758,-2750.26,0.00016712,2]
[389532530,1759702241767,-2055.77,0.00016712,2]
[389532531,1759702241776,-500.0,0.00016712,2]
[389532532,1759702241784,-500.0,0.00016712,2]
[389532533,1759702241794,-547.48,0.00016712,2]
[389532534,1759702241803,-500.0,0.00016712,2]
[389532535,1759702241812,-2441.3,0.00016712,2]
[389532536,1759702241821,-500.0,0.00016712,2]
[389532537,1759702241830,-500.0,0.00016712,2]
[389532538,1759702241838,-500.0,0.00016712,2]
[389532539,1759702241847,-525.09,0.00016712,2]
[389532540,1759702241856,-500.0,0.00016712,2]
[389532541,1759702241866,-500.0,0.00016712,2]
[389532542,1759702241875,-1048.94,0.00016712,2]
[389532543,1759702241883,-500.0,0.00016712,2]
[389532544,1759702241892,-3899.34,0.00016712,2]
[389532546,1759702241901,-500.0,0.00016712,2]
[389532547,1759702241910,-500.0,0.00016712,2]
[389532549,1759702241919,-719.05,0.00016712,2]
[389532551,1759702241928,-902.25,0.00016712,2]
[389532553,1759702241937,-876.48,0.00016712,2]
[389532555,1759702241945,-500.0,0.00016712,2]
[389532557,1759702241954,-1418.2,0.00016712,2]
[389532559,1759702241963,-500.0,0.00016712,2]
[389532561,1759702241972,-500.0,0.00016712,2]
[389532563,1759702241982,-746.24,0.00016712,2]
[389532565,1759702241990,-1595.15,0.00016712,2]
[389532567,1759702242000,-555.3,0.00016712,2]
[389532569,1759702242009,-500.0,0.00016712,2]
[389532571,1759702242018,-500.0,0.00016712,2]
[389532573,1759702242027,-500.0,0.00016712,2]
[389532575,1759702242037,-737.37,0.00016712,2]
[389532577,1759702242046,-500.0,0.00016712,2]
[389532579,1759702242055,-500.0,0.00016712,2]
[389532581,1759702242064,-500.0,0.00016712,2]
[389532583,1759702242073,-3212.25,0.00016712,2]
[389532585,1759702242082,-500.0,0.00016712,2]
[389532587,1759702242091,-500.0,0.00016712,2]
[389532589,1759702242100,-500.0,0.00016712,2]
[389532591,1759702242109,-500.0,0.00016712,2]
[389532593,1759702242118,-500.0,0.00016712,2]
[389532595,1759702242127,-1289.33,0.00016712,2]
[389532597,1759702242136,-500.0,0.00016712,2]
[389532599,1759702242146,-8646.43,0.00016712,2]
[389532601,1759702242155,-500.0,0.00016712,2]
[389532603,1759702242164,-500.0,0.00016712,2]
[389532605,1759702242174,-500.0,0.00016712,2]
[389532607,1759702242183,-985.34,0.00016712,2]
[389532609,1759702242192,-479.16133704,0.00016712,2]
[389532611,1759702242201,-500.0,0.00016712,2]
[389532613,1759702242210,-500.0,0.00016712,2]
[389532615,1759702242219,-2089.97,0.00016712,2]
[389532617,1759702242228,-500.0,0.00016712,2]
[389532619,1759702242238,-500.0,0.00016712,2]
[389532621,1759702242247,-500.0,0.00016712,2]
[389532623,1759702242256,-1064.3,0.00016712,2]
[389532626,1759702242275,-170.79530937,0.00016712,2]
[389532628,1759702242285,-797.52,0.00016712,2]
[389532630,1759702242295,-5452.89,0.00016712,2]
[389532632,1759702242305,-500.0,0.00016712,2]
[389532634,1759702242314,-500.0,0.00016712,2]
[389532636,1759702242323,-324.0,0.00016738,2]
[389532638,1759702242333,-300.0,0.00016766,2]
[389532640,1759702242342,-300.0,0.00016766,2]
[389532642,1759702242352,-300.0,0.00016766,2]
[389532644,1759702242363,-300.0,0.00016766,2]
[389532646,1759702242373,-300.0,0.00016766,2]
[389532648,1759702242383,-300.0,0.00016766,2]
[389532650,1759702242392,-300.0,0.00016766,2]
[389532652,1759702242403,-300.0,0.00016766,2]
[389532654,1759702242413,-300.0,0.00016766,2]
[389532656,1759702242422,-300.0,0.00016766,2]
[389532658,1759702242432,-300.0,0.00016766,2]
[389532660,1759702242441,-300.0,0.00016766,2]
[389532662,1759702242451,-300.0,0.00016766,2]
[389532664,1759702242462,-300.0,0.00016766,2]
[389532666,1759702242471,-300.0,0.00016766,2]
[389532668,1759702242480,-600.0,0.00016766,2]
[389532670,1759702242489,-274.69561815,0.00016886,2]
[389532672,1759702242500,-250.0,0.00016932,2]
[389532674,1759702242509,-500.0,0.00016986,2]
[389532676,1759702242519,-500.0,0.00016986,2]
[389532678,1759702242531,-500.0,0.00016986,2]
[389532680,1759702242541,-500.0,0.00016986,2]
[389532682,1759702242550,-500.0,0.00016986,2]
[389532684,1759702242560,-500.0,0.00016986,2]
[389532686,1759702242570,-415.96968067,0.00016986,2]
[389532688,1759702242579,-500.0,0.00016986,2]
[389532690,1759702242588,-500.0,0.00016986,2]
[389532692,1759702242597,-526.34,0.00016986,2]
[389532694,1759702242612,-500.0,0.00016986,2]
[389532696,1759702242622,-1483.08,0.00016986,2]
[389532699,1759702242632,-500.0,0.00016986,2]
[389532701,1759702242641,-500.0,0.00016986,2]
[389532703,1759702242650,-500.0,0.00016986,2]
[389532705,1759702242659,-500.0,0.00016986,2]
[389532707,1759702242668,-500.0,0.00016986,2]
[389532708,1759702242677,-500.0,0.00016986,2]
[389532711,1759702242687,-721.72,0.00016986,2]
[389532713,1759702242696,-1242.45,0.00016986,2]
[389532715,1759702242706,-500.0,0.00016986,2]
[389532717,1759702242715,-500.0,0.00016986,2]
[389532719,1759702242724,-795.46,0.00016986,2]
[389532721,1759702242733,-500.0,0.00016986,2]
[389532723,1759702242743,-500.0,0.00016986,2]
[389532725,1759702242752,-500.0,0.00016986,2]
[389532727,1759702242762,-500.0,0.00016986,2]
[389532729,1759702242771,-500.0,0.00016986,2]
[389532731,1759702242780,-694.4,0.00016986,2]
[389532734,1759702242789,-500.0,0.00016986,2]
[389532736,1759702242798,-500.0,0.00016986,2]
[389532738,1759702242807,-500.0,0.00016986,2]
[389532740,1759702242817,-500.0,0.00016986,2]
[389532742,1759702242826,-500.0,0.00016986,2]
[389532744,1759702242835,-500.0,0.00016986,2]
[389532747,1759702242844,-508.62,0.00016986,2]
[389532749,1759702242854,-626.09,0.00016986,2]
[389532751,1759702242863,-500.0,0.00016986,2]
[389532753,1759702242872,-826.0,0.00016986,2]
[389532755,1759702242882,-500.0,0.00016986,2]
[389532757,1759702242895,-500.0,0.00016986,2]
[389532759,1759702242905,-287.70733921,0.00016986,2]
[389532761,1759702242914,-500.0,0.00016986,2]
[389532763,1759702242923,-500.0,0.00016986,2]
[389532766,1759702242934,-500.0,0.00016986,2]
[389532768,1759702242949,-1302.91,0.00016986,2]
[389532771,1759702242959,-660.82,0.00016986,2]
[389532774,1759702242968,-500.0,0.00016986,2]
[389532776,1759702242978,-545.48788581,0.00016986,2]
[389532778,1759702242987,-500.0,0.00016986,2]
[389532780,1759702242997,-500.0,0.00016986,2]
[389532782,1759702243006,-500.0,0.00016986,2]
[389532784,1759702243015,-500.0,0.00016986,2]
[389532786,1759702243025,-500.0,0.00016986,2]
[389532789,1759702243034,-500.0,0.00016986,2]
[389532791,1759702243043,-500.0,0.00016986,2]
[389532793,1759702243053,-870.27,0.00016986,2]
[389532795,1759702243065,-634.35,0.00016986,2]
[389532797,1759702243074,-525.99,0.00016986,2]
[389532799,1759702243085,-500.0,0.00016986,2]
[389532801,1759702243094,-500.0,0.00016986,2]
[389532803,1759702243104,-1210.19,0.00016986,2]
[389532805,1759702243113,-500.0,0.00016986,2]
[389532807,1759702243122,-500.0,0.00016986,2]
[389532809,1759702243132,-837.23,0.00016986,2]
[389532811,1759702243141,-500.0,0.00016986,2]
[389532813,1759702243150,-1574.85,0.00016986,2]
[389532815,1759702243160,-500.0,0.00016986,2]
[389532817,1759702243170,-1163.07,0.00016986,2]
[389532819,1759702243180,-520.91,0.00016986,2]
[389532821,1759702243189,-500.0,0.00016986,2]
[389532824,1759702243199,-3168.37,0.00016986,2]
[389532825,1759702243208,-567.98,0.00016986,2]
[389532828,1759702243217,-500.0,0.00016986,2]
[389532830,1759702243227,-516.39,0.00016986,2]
[389532832,1759702243236,-500.0,0.00016986,2]
[389532833,1759702243245,-2000.0,0.00016986,2]
[389532835,1759702243255,-1370.67,0.00016986,2]
[389532838,1759702243265,-500.0,0.00016986,2]
[389532840,1759702243275,-9512.92,0.00016986,2]
[389532842,1759702243284,-4367.85,0.00016986,2]
[389532844,1759702243293,-574.05,0.00016986,2]
[389532846,1759702243302,-500.0,0.00016986,2]
[389532848,1759702243313,-647.93,0.00016986,2]
[389532850,1759702243323,-726.18,0.00016986,2]
[389532852,1759702243333,-500.0,0.00016986,2]
[389532854,1759702243344,-819.75,0.00016986,2]
[389532856,1759702243354,-500.0,0.00016986,2]
[389532858,1759702243363,-500.0,0.00016986,2]
[389532861,1759702243375,-500.0,0.00016986,2]
[389532863,1759702243384,-1020.8,0.00016986,2]
[389532865,1759702243394,-503.56,0.00016986,2]
[389532867,1759702243404,-13497.62,0.00016986,2]
[389532869,1759702243414,-500.0,0.00016986,2]
[389532871,1759702243424,-1138.66,0.00016986,2]
[389532873,1759702243433,-689.31,0.00016986,2]
[389532875,1759702243444,-838.71,0.00016986,2]
[389532877,1759702243454,-535.43,0.00016986,2]
[389532879,1759702243464,-500.0,0.00016986,2]
[389532881,1759702243474,-1340.33,0.00016986,2]
[389532883,1759702243483,-2553.03,0.00016986,2]
[389532907,1759702243702,-2750.26,0.00016986,2]
[389532910,1759702243712,-2055.77,0.00016986,2]
[389532912,1759702243724,-500.0,0.00016986,2]
[389532913,1759702243734,-500.0,0.00016986,2]
[389532916,1759702243743,-547.48,0.00016986,2]
[389532917,1759702243752,-500.0,0.00016986,2]
[389532920,1759702243762,-2441.3,0.00016986,2]
[389532922,1759702243771,-500.0,0.00016986,2]
[389532923,1759702243782,-500.0,0.00016986,2]
[389532926,1759702243791,-525.09,0.00016986,2]
[389532928,1759702243801,-500.0,0.00016986,2]
[389532930,1759702243813,-500.0,0.00016986,2]
[389532932,1759702243826,-1048.94,0.00016986,2]
[389532934,1759702243846,-500.0,0.00016986,2]
[389532936,1759702243856,-3899.34,0.00016986,2]
[389532938,1759702243865,-500.0,0.00016986,2]
[389532940,1759702243874,-500.0,0.00016986,2]
[389532942,1759702243884,-719.05,0.00016986,2]
[389532943,1759702243893,-902.25,0.00016986,2]
[389532945,1759702243902,-876.48,0.00016986,2]
[389532947,1759702243912,-500.0,0.00016986,2]
[389532949,1759702243921,-1418.2,0.00016986,2]
[389532951,1759702243931,-500.0,0.00016986,2]
[389532953,1759702243940,-500.0,0.00016986,2]
[389532956,1759702243950,-746.24,0.00016986,2]
[389532958,1759702243959,-1595.15,0.00016986,2]
[389532960,1759702243968,-555.3,0.00016986,2]
[389532962,1759702243978,-500.0,0.00016986,2]
[389532964,1759702243987,-500.0,0.00016986,2]
[389532966,1759702243996,-737.37,0.00016986,2]
[389532968,1759702244005,-500.0,0.00016986,2]
[389532970,1759702244014,-500.0,0.00016986,2]
[389532972,1759702244023,-500.0,0.00016986,2]
[389532974,1759702244032,-3212.25,0.00016986,2]
[389532976,1759702244042,-500.0,0.00016986,2]
[389532978,1759702244052,-500.0,0.00016986,2]
[389532980,1759702244064,-500.0,0.00016986,2]
[389532982,1759702244074,-500.0,0.00016986,2]
[389532984,1759702244084,-500.0,0.00016986,2]
[389532986,1759702244094,-1289.33,0.00016986,2]
[389532988,1759702244104,-500.0,0.00016986,2]
[389532990,1759702244115,-8646.43,0.00016986,2]
[389532992,1759702244124,-500.0,0.00016986,2]
[389532994,1759702244133,-500.0,0.00016986,2]
[389532996,1759702244142,-985.34,0.00016986,2]
[389532998,1759702244151,-500.0,0.00016986,2]
[389533000,1759702244160,-500.0,0.00016986,2]
[389533002,1759702244170,-2089.97,0.00016986,2]
[389533005,1759702244188,-500.0,0.00016986,2]
[389533007,1759702244199,-500.0,0.00016986,2]
[389533010,1759702244209,-500.0,0.00016986,2]
[389533012,1759702244219,-1064.3,0.00016986,2]
[389533014,1759702244229,-797.52,0.00016986,2]
[389533016,1759702244240,-5452.89,0.00016986,2]
[389533018,1759702244249,-500.0,0.00016986,2]
[389533020,1759702244258,-500.0,0.00016986,2]
[389533022,1759702244270,-543.09602212,0.0001699,2]
[389533024,1759702244280,-151.0,0.00017035,2]
[389533026,1759702244290,-500.0,0.00017035,2]
[389533029,1759702244300,-18603.8837,0.00017035,2]
[389533031,1759702244310,-162.380719,0.00017035,2]
[389533033,1759702244321,-151.0,0.00017035,2]
[389533035,1759702244331,-500.0,0.00017035,2]
[389533037,1759702244341,-361.07194209,0.00017035,2]
[389533039,1759702244351,-151.0,0.00017035,2]
[389533041,1759702244361,-500.0,0.00017035,2]
[389533043,1759702244372,-500.0,0.00017035,2]
[389533045,1759702244382,-605.36418013,0.00017035,2]
[389533047,1759702244394,-2030.296672,0.00017035,2]
[389533049,1759702244403,-500.0,0.00017035,2]
[389533052,1759702244414,-500.0,0.00017035,2]
[389533054,1759702244423,-2233.0,0.00017035,2]
[389533056,1759702244433,-162.380719,0.00017035,2]
[389533058,1759702244442,-250.0,0.00017035,2]
[389533060,1759702244452,-250.0,0.00017035,2]
[389533062,1759702244462,-250.0,0.00017035,2]
[389533064,1759702244472,-250.0,0.00017035,2]
[389533066,1759702244483,-250.0,0.00017035,2]
[389533068,1759702244493,-250.0,0.00017035,2]
[389533070,1759702244503,-250.0,0.00017035,2]
[389533072,1759702244513,-250.0,0.00017035,2]
[389533074,1759702244525,-251.54027301,0.00017035,2]
[389533077,1759702244539,-309.0,0.00017056,2]
[389533079,1759702244548,-2105.41764886,0.0001709,2]
[389533081,1759702244558,-587.6575632,0.000171,2]
[389533083,1759702244569,-297.5145665,0.000171,2]
[389533085,1759702244578,-348.0,0.00017138,2]
[389533087,1759702244588,-2115.01023863,0.00017145,2]
[389533089,1759702244598,-36477.3804123,0.00017162,2]
[389533091,1759702244609,-1837.5198007,0.00017162,2]
[389533093,1759702244619,-1462.69837622,0.00017214,2]
[389533095,1759702244629,-519.1329895,0.00017243,2]
[389533097,1759702244638,-189.5044535,0.00017243,2]
[389533099,1759702244647,-189.5044535,0.00017243,2]
[389533101,1759702244657,-361.0,0.00017244,2]
[389533103,1759702244667,-500.0,0.0001726,2]
[389533105,1759702244676,-500.0,0.0001726,2]
[389533107,1759702244686,-500.0,0.0001726,2]
[389533109,1759702244696,-365.81147749,0.0001726,2]
[389533112,1759702244705,-500.0,0.0001726,2]
[389533113,1759702244715,-500.0,0.0001726,2]
[389533116,1759702244724,-500.0,0.0001726,2]
[389533118,1759702244734,-500.0,0.0001726,2]
[389533120,1759702244743,-526.34,0.0001726,2]
[389533122,1759702244753,-500.0,0.0001726,2]
[389533124,1759702244762,-1483.08,0.0001726,2]
[389533126,1759702244772,-500.0,0.0001726,2]
[389533128,1759702244781,-500.0,0.0001726,2]
[389533130,1759702244791,-500.0,0.0001726,2]
[389533132,1759702244801,-500.0,0.0001726,2]
[389533134,1759702244811,-229.67497462,0.0001726,2]
[389533136,1759702244820,-500.0,0.0001726,2]
[389533138,1759702244830,-721.72,0.0001726,2]
[389533140,1759702244839,-1242.45,0.0001726,2]
[389533142,1759702244849,-500.0,0.0001726,2]
[389533144,1759702244858,-500.0,0.0001726,2]
[389533146,1759702244868,-795.46,0.0001726,2]
[389533148,1759702244877,-500.0,0.0001726,2]
[389533149,1759702244886,-500.0,0.0001726,2]
[389533151,1759702244896,-500.0,0.0001726,2]
[389533153,1759702244906,-694.4,0.0001726,2]
[389533155,1759702244915,-500.0,0.0001726,2]
[389533157,1759702244926,-500.0,0.0001726,2]
[389533159,1759702244935,-500.0,0.0001726,2]
[389533161,1759702244946,-500.0,0.0001726,2]
[389533163,1759702244956,-500.0,0.0001726,2]
[389533165,1759702244965,-500.0,0.0001726,2]
[389533167,1759702244974,-508.62,0.0001726,2]
[389533169,1759702244984,-626.09,0.0001726,2]
[389533171,1759702244995,-500.0,0.0001726,2]
[389533173,1759702245004,-826.0,0.0001726,2]
[389533175,1759702245013,-500.0,0.0001726,2]
[389533177,1759702245023,-500.0,0.0001726,2]
[389533179,1759702245032,-500.0,0.0001726,2]
[389533181,1759702245041,-420.77842656,0.0001726,2]
[389533183,1759702245050,-500.0,0.0001726,2]
[389533185,1759702245060,-1302.91,0.0001726,2]
[389533187,1759702245069,-660.82,0.0001726,2]
[389533189,1759702245078,-500.0,0.0001726,2]
[389533191,1759702245088,-500.0,0.0001726,2]
[389533193,1759702245097,-500.0,0.0001726,2]